[Event "4th Tata Steel India Blitz Women 2022"]
[Site "Kolkota"]
[Date "2022.12.03"]
[Round "2.4"]
[White "Harika, Dronavalli"]
[Black "Kiolbasa, Oliwia"]
[Result "1/2-1/2"]
[ECO "A14"]
[WhiteElo "2507"]
[BlackElo "2406"]
[Annotator "TA"]
[PlyCount "84"]
[EventDate "2022.11.29"]
[EventType "tourn"]
[EventCountry "IND"]
[SourceTitle "playchess.com"]
[Source "ChessBase"]
[SourceQuality "1"]
[TimeControl "180+2"]

{[%evp 19,84,-1,7,0,0,-15,4,13,22,0,8,6,56,68,47,33,30,24,34,16,10,-37,-23,-65,-11,-128,-115,-121,-27,-87,0,0,0,0,0,-97,235,217,264,155,434,166,165,158,217,204,210,216,197,0,0,0,47,12,60,56,56,53,52,0,0,0,0,0,0,0,0]} 1. Nf3 {[%emt 0:00:01]} d5 {[%emt 0:00:01]} 2. g3 {[%emt 0:00:01]} Nf6 {[%emt 0:00:01]} 3. Bg2 {[%emt 0:00:01]} e6 {[%emt 0:00:01]} 4. O-O {[%emt 0:00:02]} Be7 {[%emt 0:00:01]} 5. c4 {[%emt 0:00:01]} O-O {[%emt 0:00:03]} 6. b3 {[%emt 0:00:01]} c5 {[%emt 0:00:05]} 7. Bb2 {[%emt 0:00:02]} d4 {[%emt 0:00:01]} 8. e3 {[%emt 0:00:01]} Nc6 {[%emt 0:00:01]} 9. exd4 {[%emt 0:00:12]} cxd4 {[%emt 0:00:01]} 10. Re1 {[%emt 0:00:03]} Bc5 {[%emt 0:00:01]} 11. d3 {[%emt 0:00:04] A14: English Opening: 1...e6 with b3 by White.} Re8 {[%emt 0:00:16]} 12. Ba3 {[%emt 0:00:08] Against e5 is the legacy move (12.Ne5).} Bxa3 {[%emt 0:00:25]} 13. Nxa3 {[%emt 0:00:01]} e5 {[%emt 0:00:01]} 14. Nc2 {[%emt 0:00:09] [#]} Qd6 $146 {[%emt 0:00:24]} ({Predecessor:} 14... h6 15. b4 e4 16. dxe4 d3 17. Ne3 Nxb4 18. a3 Nc6 19. Nd5 Nxe4 20. Qxd3 Nc5 21. Rxe8+ Qxe8 22. Qc3 Qf8 23. Ne5 Nxe5 24. Qxe5 {½-½ (24) Demuth,A (2543)-Ly,M (2486) Adelaide 2017}) 15. b4 {[%emt 0:00:58][%cal Bb3b4,Bb4b5][%mdl 32]} Bf5 {[%emt 0:00:17]} (15... Nxb4 16. Nxb4 Qxb4 17. Nxe5 $16) (15... a6 $11) 16. b5 $14 {[%emt 0:00:10]} Nd8 {[%emt 0:00:12]} 17. Nh4 {[%emt 0:00:15] Against h6} (17. Qe2 $5) 17... Bd7 {[%emt 0:00:11]} 18. Qd2 {[%emt 0:00:02]} h6 {[%emt 0:00:05]} 19. Qb4 {[%emt 0:00:15]} Qc7 {[%emt 0:00:19]} 20. Qd2 {[%emt 0:00:18]} (20. Nf3 $11 {was preferrable.}) 20... Ne6 $15 {[%emt 0:00:04]} 21. Nb4 {[%emt 0:00:01]} Nc5 {[%emt 0:00:06]} (21... Rad8 $15) 22. h3 {[%emt 0:00:11]} (22. f4 $11 {remains equal.}) 22... Rad8 {[%emt 0:00:15]} 23. Kh2 {[%emt 0:00:04]} Be6 {[%emt 0:00:05]} ({Black should play} 23... Bc8 $17 24. Kg1 e4 25. dxe4 Nfxe4) 24. Rac1 {[%emt 0:00:05]} (24. f4 $11) 24... Qa5 {[%emt 0:00:22]} (24... g5 25. Nf3 $14) (24... Bc8 $17) 25. Rxe5 $11 {[%emt 0:00:22]} Nxd3 {[%emt 0:00:06][%mdl 64]} 26. Qxd3 {[%emt 0:00:01] aiming for Nd5.} Qxb4 {[%emt 0:00:01]} 27. Bxb7 {[%emt 0:00:04]} (27. Re2 $11) 27... Qb2 $2 {[%emt 0:00:04][%mdl 8192] [#]} (27... Nd7 $1 $17 {[%cal Rd7e5] keeps the pressure on.} 28. Rh5 Nc5 29. Rxc5 Qxc5) 28. Rc2 $1 $18 {[%emt 0:00:02]} Qb1 {[%emt 0:00:09] [#]} 29. Bc6 {[%emt 0:00:03]} ({Only move:} 29. Qd2 $1 $18) 29... Re7 $2 {[%emt 0:00:07]} (29... Nd7 $16 30. Bxd7 Bxd7) 30. Rd2 $2 {[%emt 0:00:09]} (30. Qd2 {Black must now prevent Re1.} a5 31. Qxa5 (31. bxa6 Qb8 $18)) 30... Qxd3 {[%emt 0:00:03]} 31. Rxd3 {[%emt 0:00:00] Threatens to win with c5.} Bxc4 {[%emt 0:00:02]} (31... Rc7 $16) 32. Rxd4 {[%emt 0:00:04]} ({Resist} 32. Rxe7 Bxd3 33. Nf3 (33. Rxa7 Be4 $16) 33... Rb8) 32... Rxd4 {[%emt 0:00:05]} 33. Rxe7 {[%emt 0:00:01]} Rd2 {[%emt 0:00:03]} 34. Kg1 {[%emt 0:00:05]} ({White should try} 34. Rxa7 $18 Rxf2+ 35. Kg1 Rf1+ 36. Kg2) 34... Rxa2 $11 {[%emt 0:00:03]} 35. Nf5 {[%emt 0:00:03]} Rb2 {[%emt 0:00:05]} (35... Be6 $11 36. g4 h5) 36. Rxa7 {[%emt 0:00:02] Black should prevent Rb7.} (36. Nd6 $5 {[%cal Rd6c4]} Be6 37. g4 $14 (37. Rxa7 Bxh3 38. Ra8+ Kh7 $14)) 36... Bxb5 {[%emt 0:00:01]} (36... Rb1+ $11 37. Kg2 Bf1+ 38. Kf3 Bxb5 39. Bxb5 Rxb5) 37. Ra8+ {[%emt 0:00:01]} Kh7 {[%emt 0:00:02]} 38. Bxb5 {[%emt 0:00:02]} Rxb5 {[%emt 0:00:01]} 39. Ne3 {[%emt 0:00:03]} (39. Nd6 $14 Rd5 40. Nxf7) 39... Rb2 {[%emt 0:00:02] The position is equal.} 40. Rc8 {[%emt 0:00:01]} Ne4 {[%emt 0:00:02]} 41. Rc2 {[%emt 0:00:02]} Rxc2 {[%emt 0:00:02]} 42. Nxc2 {[%emt 0:00:01]} Nd6 {[%emt 0:00:02] White really could win this.   Weighted Error Value: White=0.53/Black=0.59} 1/2-1/2

[Event "4th Tata Steel India Blitz Women 2022"]
[Site "Kolkota"]
[Date "2022.12.03"]
[Round "2.5"]
[White "Koneru, Humpy"]
[Black "Ushenina, Anna"]
[Result "1/2-1/2"]
[ECO "E14"]
[WhiteElo "2574"]
[BlackElo "2454"]
[Annotator "TA"]
[PlyCount "81"]
[EventDate "2022.11.29"]
[EventType "tourn"]
[EventCountry "IND"]
[SourceTitle "playchess.com"]
[Source "ChessBase"]
[SourceQuality "1"]
[TimeControl "180+2"]

{[%evp 26,81,0,0,0,-22,0,-17,42,-3,0,0,0,0,50,12,34,14,8,-22,-38,-64,-55,-67,-61,-71,-58,-45,-58,-142,-143,-191,-157,-157,-157,-197,-186,-171,-154,-313,-164,-403,-394,-363,-308,-5489,-246,-524,-359,-335,-325,-270,0,0,0,0,0,0]} 1. d4 {[%emt 0:00:01]} d5 {[%emt 0:00:02]} 2. c4 {[%emt 0:00:03]} e6 {[%emt 0:00:01]} 3. Nf3 {[%emt 0:00:02]} Nf6 {[%emt 0:00:02]} 4. e3 {[%emt 0:00:01]} Be7 {[%emt 0:00:04]} 5. Nbd2 {[%emt 0:00:14]} O-O {[%emt 0:00:03]} 6. Bd3 {[%emt 0:00:03]} c5 {[%emt 0:00:01]} 7. b3 {[%emt 0:00:13]} cxd4 {[%emt 0:00:04]} 8. exd4 {[%emt 0:00:02]} b6 {[%emt 0:00:02]} 9. Bb2 {[%emt 0:00:03]} Bb7 {[%emt 0:00:01]} 10. O-O {[%emt 0:00:03]} Nc6 {[%emt 0:00:01]} 11. Qe2 {[%emt 0:00:12]} Rc8 {[%emt 0:00:09]} 12. Rac1 {[%emt 0:00:10]} Re8 {[%emt 0:00:01]} 13. Rfd1 {[%emt 0:00:04]} Bf8 {[%emt 0:00:05]} 14. Nf1 {[%emt 0:00:10][%cal Bd2f1,Bf1e3,Be3g4][%mdl 32]} g6 {[%emt 0:00:16] E14: Queen's Indian: Classical Variation (4 e3).} 15. Ne5 {[%emt 0:00:14]} Bh6 {[%emt 0:00:12][%cal Oc6d4] Strongly threatening ...Nxd4!} 16. Ne3 {[%emt 0:00:05] [#]} Nd7 $146 {[%emt 0:00:13]} (16... Re7 $11) ({Predecessor:} 16... dxc4 17. bxc4 Nxe5 18. dxe5 Nd7 19. Ba3 Qg5 20. Be4 Bxe4 21. Rxd7 Bc6 22. Rxa7 Qxe5 23. Bb2 {1-0 (42) Urday Caceres,H (2480)-Sanchez Guirado,F (2335) Ponferrada 1992}) 17. Nxd7 {[%emt 0:00:33]} (17. cxd5 {seems wilder.} exd5 18. Bb5 Ncxe5 19. Rxc8 Nf3+ 20. Qxf3 Qxc8 21. Ng4) 17... Qxd7 {[%emt 0:00:03]} 18. c5 {[%emt 0:00:09][%cal Oe3g4]} bxc5 {[%emt 0:00:14]} 19. Rxc5 {[%emt 0:00:12]} Nb4 {[%emt 0:00:13]} (19... Bg7 $11) 20. Bb5 {[%emt 0:00:04]} (20. Ng4 $5 {[%cal Rg4f6]} Bg7 21. Bb5 $14) 20... Bc6 {[%emt 0:00:02]} 21. Ng4 {[%emt 0:00:12]} Bg7 {[%emt 0:00:01] Inhibits Nf6+.} 22. Bxc6 {[%emt 0:00:18]} Nxc6 {[%emt 0:00:03]} 23. Qe3 {[%emt 0:00:10]} h5 {[%emt 0:00:11]} 24. Ne5 {[%emt 0:00:05]} Nxe5 {[%emt 0:00:05]} 25. dxe5 {[%emt 0:00:04]} Rxc5 {[%emt 0:00:07]} 26. Qxc5 {[%emt 0:00:02]} Rc8 {[%emt 0:00:01]} 27. Qd4 {[%emt 0:00:03]} (27. Qa5 $15) 27... Rc2 $17 {[%emt 0:00:08]} 28. Rc1 {[%emt 0:00:12]} (28. Rb1 $17 {might work better.}) 28... Qc7 {[%emt 0:00:02]} 29. Rxc2 {[%emt 0:00:03]} Qxc2 {[%emt 0:00:01][%mdl 4096] Endgame KQB-KQB} 30. h4 {[%emt 0:00:04]} Qb1+ {[%emt 0:00:02]} 31. Kh2 {[%emt 0:00:01]} Qxa2 {[%emt 0:00:01]} 32. Qc3 {[%emt 0:00:02] [#]} (32. b4 $17) 32... Kh7 {[%emt 0:00:06]} (32... Bf8 $142 {Threatens to win with ...a5.} 33. g3 a5) 33. f3 $2 {[%emt 0:00:06]} (33. b4 {was the only defense.}) 33... Bh6 $19 {[%emt 0:00:27]} 34. Kg3 {[%emt 0:00:03] Against Bf4+} Qb1 {[%emt 0:00:07]} 35. Qd4 {[%emt 0:00:02]} (35. Ba3) 35... Qc2 $2 {[%emt 0:00:07]} (35... Qe1+ 36. Kh3 Be3) 36. b4 $2 {[%emt 0:00:01]} (36. Ba3) 36... Bd2 {[%emt 0:00:27] [#] White must now prevent ...Qd1.} 37. Qxa7 {[%emt 0:00:03]} Be1+ {[%emt 0:00:17]} ({Not} 37... Qxb2 38. Qxf7+ Kh8 39. Qf8+ Kh7 40. Qf7+ Kh8 41. Qf8+ Kh7 42. Qf7+ $11) 38. Kh2 {[%emt 0:00:02]} Qxb2 $2 {[%emt 0:00:10]} (38... Kg7 $19 39. Bd4 Bxb4) 39. Qxf7+ $11 {[%emt 0:00:03] The position is equal.} Kh6 {[%emt 0:00:02]} 40. Qf8+ {[%emt 0:00:01]} Kh7 {[%emt 0:00:01]} 41. Qf7+ {[%emt 0:00:01] Weighted Error Value: White=0.67/Black=0.70} 1/2-1/2

[Event "4th Tata Steel India Blitz Women 2022"]
[Site "Kolkota"]
[Date "2022.12.03"]
[Round "3.1"]
[White "Muzychuk, Mariya"]
[Black "Koneru, Humpy"]
[Result "1-0"]
[ECO "C54"]
[WhiteElo "2528"]
[BlackElo "2574"]
[Annotator "TA"]
[PlyCount "68"]
[EventDate "2022.11.29"]
[EventType "tourn"]
[EventCountry "IND"]
[SourceTitle "playchess.com"]
[Source "ChessBase"]
[SourceQuality "1"]
[TimeControl "180+2"]

{[%evp 13,68,12,19,22,11,10,45,39,38,21,27,-43,-33,-31,-31,-25,-28,-31,-37,-33,-33,-31,-8,-32,-28,-53,-39,-39,-32,-41,0,-32,0,-25,34,24,34,-31,-29,-24,-21,-17,-14,-27,15,16,293,278,278,169,503,389,449,433,407,391,1037]} 1. e4 {[%emt 0:00:01]} e5 {[%emt 0:00:02]} 2. Nf3 {[%emt 0:00:00]} Nc6 {[%emt 0:00:01]} 3. Bc4 {[%emt 0:00:01]} Bc5 {[%emt 0:00:03]} 4. c3 {[%emt 0:00:01]} Nf6 {[%emt 0:00:05]} 5. d3 {[%emt 0:00:01]} d6 {[%emt 0:00:02]} 6. O-O {[%emt 0:00:03]} a5 {[%emt 0:00:03]} 7. a4 {[%emt 0:00:03]} O-O {[%emt 0:00:20]} 8. Bg5 {[%emt 0:00:01] 8.Bg5 was played by the boomers. C54: Giuoco Piano: 4 c3 Nf6, main lines with 5 d4 and 5 d3.} h6 {[%emt 0:00:06]} 9. Bh4 Ba7 {[%emt 0:00:14]} (9... g5 $5 {[%cal Rg5h4]} 10. Bg3 Be6 $11) 10. Na3 {[%emt 0:00:02] White is slightly better.} Qe7 {[%emt 0:00:27]} 11. Nc2 {[%emt 0:00:03] [#]} Be6 $146 {[%emt 0:00:08]} ({Predecessor:} 11... Nd8 12. Ne3 c6 13. Re1 Bxe3 14. fxe3 Be6 15. Nd2 Bxc4 16. Nxc4 Qe6 17. Bxf6 Qxf6 {1-0 (49) Rodrigue Lemieux,S (2160)-Duong,T (2175) Montreal 2018}) 12. Qe2 {[%emt 0:00:26]} ({White should play} 12. Nd2 $11) 12... Bxc4 $15 {[%emt 0:00:08]} 13. dxc4 {[%emt 0:00:02]} Qe6 {[%emt 0:00:01]} 14. Bxf6 {[%emt 0:00:37]} Qxf6 {[%emt 0:00:02]} 15. Ne3 {[%emt 0:00:00]} Bxe3 {[%emt 0:00:21]} 16. Qxe3 {[%emt 0:00:02]} Qe6 {[%emt 0:00:05]} 17. b3 {[%emt 0:00:12]} Ne7 {[%emt 0:00:05]} 18. Rad1 {[%emt 0:00:06]} b6 {[%emt 0:00:05]} 19. h3 {[%emt 0:00:02]} f5 {[%emt 0:00:05]} 20. exf5 $1 {[%emt 0:00:07]} Nxf5 {[%emt 0:00:10]} 21. Qe4 {[%emt 0:00:03][%cal Of3d4]} Rae8 {[%emt 0:00:07]} 22. Rfe1 {[%emt 0:00:07]} Qf6 {[%emt 0:00:07]} 23. Re2 {[%emt 0:00:07]} Re7 {[%emt 0:00:07]} ({Better is} 23... Ne7 $11) 24. b4 $14 {[%emt 0:00:21]} Ref7 {[%emt 0:00:10]} 25. Qd5 {[%emt 0:00:06]} (25. bxa5 $14 bxa5 26. c5) 25... Ne7 $15 {[%emt 0:00:04][%cal Bf5e7,Be7g6,Bg6f4][%mdl 32]} 26. Qe4 {[%emt 0:00:15][%cal Oc4c5]} Ng6 {[%emt 0:00:02] Inhibits c5.} 27. Re3 {[%emt 0:00:24]} Nf4 {[%emt 0:00:17]} 28. Rd2 {[%emt 0:00:04]} g5 {[%emt 0:00:04]} 29. c5 {[%emt 0:00:02]} h5 $2 {[%emt 0:00:16][%mdl 8192] [#] This move loses the game for Black.} (29... bxc5 $11 30. bxc5 Qe6) 30. cxd6 {[%emt 0:00:03]} cxd6 {[%emt 0:00:01]} 31. Qc6 {[%emt 0:00:08]} g4 $2 {[%emt 0:00:08]} (31... d5 {is more resistant.} 32. Qxf6 (32. Nxe5 axb4 33. cxb4 Qxc6 $18) 32... Rxf6) 32. hxg4 {[%emt 0:00:02]} hxg4 {[%emt 0:00:02]} 33. Rxd6 {[%emt 0:00:01]} Qf5 {[%emt 0:00:04]} 34. Rxe5 {[%emt 0:00:05]} ({Weaker is} 34. Nxe5 Nh3+ 35. Kh2 (35. gxh3 {leads to mate.} Qxf2+ 36. Kh1 Qf1+ 37. Kh2 Rf2+ 38. Kg3 Qxh3#) 35... Qf4+ 36. Rg3 Qxe5 $18) 34... Qh7 $2 {[%emt 0:00:05] Weighted Error Value: White=0.25 (precise) /Black=0.48} (34... Ne2+ 35. Rxe2 gxf3 36. Rg6+ Kh7 37. Rh6+ Kg8) 1-0

[Event "4th Tata Steel India Blitz Women 2022"]
[Site "Kolkota"]
[Date "2022.12.03"]
[Round "3.2"]
[White "Savitha Shri B"]
[Black "Muzychuk, Anna"]
[Result "1-0"]
[ECO "C82"]
[WhiteElo "2411"]
[BlackElo "2525"]
[Annotator "TA"]
[PlyCount "109"]
[EventDate "2022.11.29"]
[EventType "tourn"]
[EventCountry "IND"]
[SourceTitle "playchess.com"]
[Source "ChessBase"]
[SourceQuality "1"]
[TimeControl "180+2"]

{[%evp 23,109,0,0,0,0,7,0,14,0,-20,95,106,295,314,347,298,324,337,314,228,224,214,214,226,246,0,220,216,318,272,325,267,472,468,458,453,509,533,533,525,516,511,509,362,362,337,304,362,362,362,355,355,352,345,343,0,306,193,185,0,273,0,326,216,216,216,216,0,216,0,201,208,208,201,193,153,360,308,29978,29979,29980,29981,29985,29986,29989,29989,29989,29990]} 1. e4 {[%emt 0:00:03] Giri,Anish} e5 {[%emt 0:00:00]} 2. Nf3 {[%emt 0:00:05]} Nc6 {[%emt 0:00:01]} 3. Bb5 {[%emt 0:00:00][%cal Bf1b5,Bb5a4,Ba4b3][%mdl 32]} a6 {[%emt 0:00:01]} 4. Ba4 Nf6 {[%emt 0:00:00]} 5. O-O {[%emt 0:00:02]} Nxe4 {[%emt 0:00:01]} 6. d4 {[%emt 0:00:06]} b5 {[%emt 0:00:00]} 7. Bb3 {[%emt 0:00:00]} d5 {[%emt 0:00:00]} 8. dxe5 {[%emt 0:00:02]} Be6 9. c3 {[%emt 0:00:01]} Bc5 {[%emt 0:00:02]} 10. Nbd2 {[%emt 0:00:02]} O-O {[%emt 0:00:03]} 11. Bc2 {[%emt 0:00:01]} Nxf2 {[%emt 0:00:01]} 12. Rxf2 {[%emt 0:00:01]} f6 {[%emt 0:00:02]} 13. Nf1 $1 {[%emt 0:00:02][%mdl 4] Be3 is the strong threat. is recently more successful than 13.exf6. C82: Open Ruy Lopez: 9 c3 without 9...Be7.} Bxf2+ {[%emt 0:00:02]} 14. Kxf2 {[%emt 0:00:01]} fxe5 {[%emt 0:00:01]} 15. Kg1 {[%emt 0:00:00][%cal Oc2h7] Hoping for Bxh7+! The position is equal.} Qd7 {[%emt 0:00:02] [#]} 16. Ne3 $146 {[%emt 0:00:04] Strongly threatening Ng5.} ({Predecessor:} 16. Bg5 Rae8 17. Qd2 d4 18. Ng3 h6 19. Bh4 dxc3 20. Qxc3 Rxf3 21. gxf3 Nd4 22. Bd1 {1-0 (39) Vachier Lagrave,M (2750)-Caruana,F (2786) Bucharest 2022 CBM 208 [Giri,Anish]}) 16... d4 {[%emt 0:00:48]} (16... h6 $11) 17. Ng5 $16 {[%emt 0:01:59]} dxe3 $2 {[%emt 0:00:08] [#]} (17... Kh8 $16) 18. Nxe6 $1 $18 {[%emt 0:00:28] Chess con chili.} Qxd1+ {[%emt 0:00:22]} (18... Qxe6 $2 19. Bb3 $18 (19. Bxe3 $2 Na5 $19) (19. Bxe3 $2 Na5 $19)) 19. Bxd1 {[%emt 0:00:01]} Rf7 {[%emt 0:00:02]} 20. Bxe3 {[%emt 0:00:04]} Na5 {[%emt 0:00:13]} 21. a4 {[%emt 0:00:16] aiming for axb5.} Nc4 {[%emt 0:00:15]} 22. Bc5 {[%emt 0:00:00] And now axb5 would win.} Re8 {[%emt 0:00:27]} 23. axb5 {[%emt 0:00:15]} axb5 {[%emt 0:00:03]} 24. Bf3 $2 {[%emt 0:00:02]} h6 $2 {[%emt 0:00:42]} (24... Rxe6 $2 25. Ra8+) (24... Rxf3 $11 25. Nxc7 Rc8 26. gxf3 Rxc7) 25. Bd5 {[%emt 0:00:03]} Kh8 {[%emt 0:00:04]} (25... c6 $142 26. Nc7 (26. Bxc6 Rxe6 27. Bd5 Ref6 $14) 26... cxd5 27. Nxe8 Nxb2) 26. b3 {[%emt 0:00:06]} Nd2 {[%emt 0:00:17][%cal Oc7c6]} 27. Rd1 {[%emt 0:00:01] Inhibits c6.} c6 $2 {[%emt 0:00:02]} (27... Rd7) 28. Bxc6 {[%emt 0:00:04]} (28. Nd8 Rf1+ 29. Rxf1 Rxd8 $18) 28... Rxe6 {[%emt 0:00:02]} 29. Bd5 {[%emt 0:00:00] This pair of bishops is nice.} (29. Bxb5 Nxb3 30. Bb4 Rc7 $15) 29... Rd7 {[%emt 0:00:10]} 30. Bxe6 {[%emt 0:00:01]} Nf3+ {[%emt 0:00:00]} 31. gxf3 {[%emt 0:00:01]} Rxd1+ {[%emt 0:00:01]} 32. Kf2 {[%emt 0:00:00]} Rd2+ {[%emt 0:00:01]} 33. Kg3 {[%emt 0:00:01]} Rd3 {[%emt 0:00:04]} 34. Bf5 {[%emt 0:00:10] Inhibits e4.} (34. Bb4 e4 35. Bg4 g6 $16) 34... Rxc3 {[%emt 0:00:01]} 35. b4 {[%emt 0:00:00]} Kg8 {[%emt 0:00:06]} 36. Kg2 {[%emt 0:00:01]} Kf7 {[%emt 0:00:01]} 37. Bd7 {[%emt 0:00:00]} Rc2+ {[%emt 0:00:04]} 38. Kg3 {[%emt 0:00:03]} Rc3 {[%emt 0:00:01]} 39. Kg2 {[%emt 0:00:04]} Rc2+ {[%emt 0:00:01]} 40. Kg1 {[%emt 0:00:00]} ({Resist} 40. Kg3 $6 g5 41. Bxb5 Kf6 $18) 40... Rc1+ {[%emt 0:00:01]} 41. Kg2 {[%emt 0:00:06]} (41. Kf2 $142) 41... Rc2+ {[%emt 0:00:01]} 42. Kg3 {[%emt 0:00:05]} Rc3 $1 43. Bc6 {[%emt 0:00:01] Against e4} Ke6 {[%emt 0:00:05]} 44. Kg4 {[%emt 0:00:02]} ({Much less strong is} 44. Bxb5 $6 e4) 44... Rc4+ {[%emt 0:00:04]} 45. Kg3 {[%emt 0:00:04]} Rc3 $1 {[%emt 0:00:00]} 46. Kg4 {[%emt 0:00:01]} ({But not} 46. Bxb5 $6 e4) 46... Rc4+ $1 {[%emt 0:00:01]} 47. Be4 {[%emt 0:00:04]} Kf6 {[%emt 0:00:06]} 48. h4 {[%emt 0:00:01][%cal Bh2h4,Bh4h5,Bh5h6,Bh6h7][%mdl 32]} g6 {[%emt 0:00:01]} 49. h5 {[%emt 0:00:00]} g5 {[%emt 0:00:05]} (49... gxh5+ $16 {was necessary.} 50. Kxh5 Rc1) 50. Bf8 {[%emt 0:00:02]} Rc8 $2 {[%emt 0:00:04]} (50... Rc1 $18 51. Bxh6 Rg1+ 52. Kh3 Rh1+ 53. Kg3 Rxh5) 51. Bxh6 {[%emt 0:00:04] White mates.} Rc4 {[%emt 0:00:02]} 52. Bxg5+ {[%emt 0:00:02]} Kg7 {[%emt 0:00:00]} 53. h6+ {[%emt 0:00:01]} Kg8 {[%emt 0:00:03]} 54. Kh5 {[%emt 0:00:01]} Rc7 {[%emt 0:00:03]} 55. h7+ {[%emt 0:00:01] Weighted Error Value: White=0.52/Black=0.39} 1-0

[Event "4th Tata Steel India Blitz Women 2022"]
[Site "Kolkota"]
[Date "2022.12.03"]
[Round "3.3"]
[White "Ushenina, Anna"]
[Black "Harika, Dronavalli"]
[Result "1/2-1/2"]
[ECO "E62"]
[WhiteElo "2454"]
[BlackElo "2507"]
[Annotator "TA"]
[PlyCount "46"]
[EventDate "2022.11.29"]
[EventType "tourn"]
[EventCountry "IND"]
[SourceTitle "playchess.com"]
[Source "ChessBase"]
[SourceQuality "1"]
[TimeControl "180+2"]

{[%evp 19,46,55,61,50,47,45,44,43,57,2,6,9,18,18,12,14,68,-38,-26,-32,-39,-56,-33,-37,0,-54,0,-39,0]} 1. Nf3 {[%emt 0:00:01]} Nf6 {[%emt 0:00:04]} 2. g3 {[%emt 0:00:03]} g6 {[%emt 0:00:01]} 3. Bg2 {[%emt 0:00:01]} Bg7 {[%emt 0:00:01]} 4. O-O {[%emt 0:00:02]} O-O {[%emt 0:00:01]} 5. d4 {[%emt 0:00:02]} d6 {[%emt 0:00:01]} 6. c4 {[%emt 0:00:01]} Nc6 {[%emt 0:00:02]} 7. Nc3 {[%emt 0:00:03]} e5 {[%emt 0:00:02]} 8. dxe5 {[%emt 0:00:02]} dxe5 {[%emt 0:00:02]} 9. Bg5 {[%emt 0:00:02]} h6 {[%emt 0:00:02]} 10. Qxd8 {[%emt 0:00:08]} Rxd8 {[%emt 0:00:04]} 11. Bxf6 {[%emt 0:00:02] E62: King's Indian: Fianchetto: 6...c6 and Panno Variation (6...Nc6) without ...a6.} Bxf6 {[%emt 0:00:01]} 12. Nd5 {[%emt 0:00:01]} Kg7 {[%emt 0:00:02]} 13. Nxc7 {[%emt 0:00:15] White is slightly better.} Rb8 {[%emt 0:00:01]} 14. Rad1 {[%emt 0:00:11]} (14. e4 $14) 14... e4 $11 {[%emt 0:00:07][%csl LRb2,LRf3]} 15. Nd2 {[%emt 0:00:02]} Be5 {[%emt 0:00:23]} 16. Nd5 {[%emt 0:00:05]} f5 {[%emt 0:00:01]} 17. b3 {[%emt 0:00:31]} Be6 {[%emt 0:00:03] [#]} ({Black should try} 17... Nd4 $11) 18. Nf4 $146 {[%emt 0:00:17]} ({Better is} 18. f3 $1 $14) ({Predecessor:} 18. f3 exf3 19. exf3 Bxd5 20. cxd5 Bd4+ 21. Kh1 Nb4 22. Nc4 Bf6 23. a4 Nxd5 24. f4 {½-½ (36) Vestby Ellingsen,M (2351)-Asis Gargatagli,H (2514) Escaldes 2022}) 18... Bxf4 {[%emt 0:00:23]} 19. gxf4 {[%emt 0:00:01]} Nd4 $36 {[%emt 0:00:01][%mdl 2048] Black fights for an advantage.} 20. Rfe1 {[%emt 0:00:27]} Nc2 {[%emt 0:00:09][%mdl 1024] Black has compensation.} 21. Rf1 {[%emt 0:00:01]} Nd4 {[%emt 0:00:13]} 22. Rfe1 {[%emt 0:00:02]} Nc2 {[%emt 0:00:43]} 23. Rf1 {[%emt 0:00:03]} Nd4 {[%emt 0:00:09] Weighted Error Value: White=0.25 (precise) /Black=0.18 (very precise)} 1/2-1/2